fUST/lending_fUST_20250615
["ID","MTS","AMOUNT","RATE_DAILY","PERIOD"]
[365909325,1749982243918,-1326.37,0.00021552,2]
[365909327,1749982243928,-1616.2,0.00021552,2]
[365909329,1749982243938,-567.81,0.00021552,2]
[365909331,1749982243948,-460.0,0.00021552,2]
[365909333,1749982243957,-460.0,0.00021552,2]
[365909335,1749982243967,-460.0,0.00021552,2]
[365909337,1749982243977,-460.0,0.00021552,2]
[365909339,1749982243987,-736.44,0.00021552,2]
[365909341,1749982243997,-460.0,0.00021552,2]
[365909344,1749982244006,-460.0,0.00021552,2]
[365909346,1749982244016,-592.4,0.00021553,2]
[365909348,1749982244026,-500.0,0.00021553,3]
[365909350,1749982244036,-460.0,0.00021553,2]
[365909352,1749982244046,-460.0,0.00021553,2]
[365909354,1749982244055,-460.0,0.00021553,2]
[365909356,1749982244064,-460.0,0.00021553,2]
[365909358,1749982244074,-460.0,0.00021553,2]
[365909360,1749982244084,-460.0,0.00021553,2]
[365909362,1749982244093,-460.0,0.00021553,2]
[365909364,1749982244102,-699.71,0.00021554,2]
[365909366,1749982244111,-460.0,0.00021555,2]
[365909368,1749982244121,-460.0,0.00021555,2]
[365909370,1749982244131,-460.0,0.00021555,2]
[365909372,1749982244141,-460.0,0.00021555,2]
[365909373,1749982244150,-460.0,0.00021555,2]
[365909375,1749982244160,-460.0,0.00021555,2]
[365909377,1749982244170,-1210.27,0.00021556,2]
[365909379,1749982244180,-460.0,0.00021556,2]
[365909381,1749982244190,-660.9,0.00021556,2]
[365909383,1749982244200,-825.24,0.00021556,2]
[365909385,1749982244210,-460.0,0.00021556,2]
[365909387,1749982244219,-706.77,0.00021556,2]
[365909389,1749982244230,-830.57,0.00021556,2]
[365909391,1749982244241,-1854.62,0.00021556,2]
[365909393,1749982244250,-971.11250847,0.00021568,2]
[365909395,1749982244259,-1096.11511254,0.0002159,5]
[365909397,1749982244269,-802.32349719,0.000216,2]
[365909399,1749982244278,-229.86375354,0.00021603,2]
[365909401,1749982244288,-835.55256958,0.00021603,2]
[365909403,1749982244297,-424.47602138,0.00021603,2]
[365909405,1749982244307,-160.0,0.00021603,2]
[365909407,1749982244316,-160.0,0.00021603,2]
[365909409,1749982244326,-160.0,0.00021603,2]
[365909410,1749982244337,-213.32089821,0.00021603,2]
[365909411,1749982244346,-12535.62630729,0.00021603,2]
[365909412,1749982244355,-160.0,0.00021603,2]
[365909413,1749982244364,-160.0,0.00021608,2]
[365909414,1749982244374,-160.0,0.00021608,2]
[365909415,1749982244384,-160.0,0.00021608,2]
[365909416,1749982244394,-160.0,0.00021608,2]
[365909417,1749982244403,-387.7907368,0.00021665,2]
[365909418,1749982244412,-153.0,0.00021753,2]
[365909419,1749982244422,-573.8932911,0.00021753,2]
[365909420,1749982244431,-159.8882664,0.00021753,2]
[365909421,1749982244441,-177.0323298,0.00021753,2]
[365909422,1749982244450,-158.9019425,0.00021753,2]
[365909423,1749982244459,-153.0,0.00021753,2]
[365909424,1749982244468,-177.0323298,0.00021753,2]
[365909425,1749982244477,-573.8932911,0.00021753,2]
[365909426,1749982244487,-158.9019424,0.00021753,2]
[365909427,1749982244500,-177.0323298,0.00021753,2]
[365909428,1749982244509,-153.0,0.00021753,2]
[365909429,1749982244518,-573.8932911,0.00021753,2]
[365909430,1749982244529,-158.9019424,0.00021753,2]
[365909431,1749982244539,-177.0323298,0.00021753,2]
[365909432,1749982244547,-573.8932911,0.00021753,2]
[365909433,1749982244556,-352.4207604,0.00021753,2]
[365909434,1749982244566,-317.4938163,0.00021753,2]
[365909435,1749982244576,-1096.11511254,0.00021762,5]
[365909436,1749982244585,-3399.999999,0.0002181,2]
[365909437,1749982244594,-460.0,0.00021825,2]
[365909438,1749982244603,-987.01,0.00021825,2]
[365909439,1749982244612,-840.69,0.00021825,2]
[365909440,1749982244622,-801.24,0.00021825,2]
[365909441,1749982244631,-475.3,0.00021825,2]
[365909442,1749982244642,-764.98,0.00021826,2]
[365909443,1749982244651,-1282.49,0.00021826,2]
[365909444,1749982244661,-1326.37,0.00021826,2]
[365909445,1749982244670,-1616.2,0.00021826,2]
[365909446,1749982244679,-567.81,0.00021826,2]
[365909447,1749982244688,-460.0,0.00021826,2]
[365909448,1749982244698,-295.67577443,0.00021826,2]
[365909449,1749982244707,-460.0,0.00021826,2]
[365909450,1749982244716,-736.44,0.00021826,2]
[365909451,1749982244754,-427.66057851,0.00021826,2]
[365909452,1749982244763,-460.0,0.00021826,2]
[365909453,1749982244773,-592.4,0.00021827,2]
[365909454,1749982244782,-460.0,0.00021827,2]
[365909455,1749982244791,-460.0,0.00021827,2]
[365909456,1749982244800,-460.0,0.00021827,2]
[365909457,1749982244809,-460.0,0.00021827,2]
[365909458,1749982244818,-460.0,0.00021827,2]
[365909459,1749982244827,-699.71,0.00021828,2]
[365909460,1749982244838,-460.0,0.00021829,2]
[365909461,1749982244847,-460.0,0.00021829,2]
[365909462,1749982244856,-460.0,0.00021829,2]
[365909463,1749982244866,-460.0,0.00021829,2]
[365909464,1749982244875,-460.0,0.00021829,2]
[365909465,1749982244884,-460.0,0.00021829,2]
[365909466,1749982244893,-1210.27,0.0002183,2]
[365909467,1749982244902,-460.0,0.0002183,2]
[365909468,1749982244911,-660.9,0.0002183,2]
[365909469,1749982244922,-825.24,0.0002183,2]
[365909470,1749982244931,-460.0,0.0002183,2]
[365909471,1749982244941,-706.77,0.0002183,2]
[365909472,1749982244951,-830.57,0.0002183,2]
[365909473,1749982244960,-1854.62,0.0002183,2]
[365909474,1749982244970,-420.0,0.00021845,2]
[365909476,1749982244980,-203.68112716,0.00021917,2]
[365909478,1749982244989,-500.0,0.00021917,2]
[365909480,1749982244998,-500.0,0.00021917,2]
[365909482,1749982245008,-500.0,0.00021917,2]
[365909484,1749982245018,-502.37999816,0.00021917,2]
[365909486,1749982245027,-1096.11511254,0.00021934,6]
[365909488,1749982245037,-365.3426848,0.00021973,2]
[365909490,1749982245046,-500.0,0.00021981,2]
[365909492,1749982245056,-365.2062734,0.00022,2]
[365909494,1749982245066,-365.2062734,0.00022027,2]
[365909496,1749982245075,-6482.76,0.00022033,2]
[365909498,1749982245087,-250.0,0.0002209,2]
[365909500,1749982245098,-237.66574569,0.00022092,2]
[365909502,1749982245107,-500.0,0.00022092,2]
[365909504,1749982245117,-500.0,0.00022092,2]
[365909505,1749982245126,-500.0,0.00022092,2]
[365909506,1749982245136,-500.0,0.00022092,2]
[365909507,1749982245146,-500.0,0.00022092,2]
[365909508,1749982245155,-500.0,0.00022092,2]
[365909509,1749982245167,-600.0,0.00022092,2]
[365909510,1749982245176,-500.0,0.00022092,2]
[365909512,1749982245186,-500.0,0.00022092,2]
[365909514,1749982245195,-500.0,0.00022092,2]
[365909516,1749982245205,-500.0,0.00022092,2]
[365909517,1749982245214,-500.0,0.00022092,2]
[365909518,1749982245224,-500.0,0.00022092,2]
[365909519,1749982245233,-500.0,0.00022092,2]
[365909520,1749982245243,-342.64,0.00022094,3]
[365909521,1749982245252,-460.0,0.00022099,2]
[365909522,1749982245262,-987.01,0.00022099,2]
[365909523,1749982245271,-840.69,0.00022099,2]
[365909524,1749982245281,-801.24,0.00022099,2]
[365909525,1749982245290,-764.98,0.000221,2]
[365909526,1749982245300,-1282.49,0.000221,2]
[365909527,1749982245309,-1326.37,0.000221,2]
[365909528,1749982245319,-1616.2,0.000221,2]
[365909529,1749982245328,-567.81,0.000221,2]
[365909530,1749982245340,-460.0,0.000221,2]
[365909531,1749982245350,-460.0,0.000221,2]
[365909533,1749982245359,-736.44,0.000221,2]
[365909535,1749982245368,-460.0,0.000221,2]
[365909537,1749982245379,-592.4,0.00022101,2]
[365909538,1749982245387,-500.0,0.00022101,4]
[365909539,1749982245397,-460.0,0.00022101,2]
[365909540,1749982245406,-460.0,0.00022101,2]
[365909542,1749982245415,-460.0,0.00022101,2]
[365909544,1749982245425,-460.0,0.00022101,2]
[365909546,1749982245434,-460.0,0.00022101,2]
[365909547,1749982245443,-699.71,0.00022102,2]
[365909548,1749982245452,-460.0,0.00022103,2]
[365909549,1749982245462,-187.94254212,0.00022103,2]
[365909550,1749982245472,-460.0,0.00022103,2]
[365909551,1749982245482,-460.0,0.00022103,2]
[365909552,1749982245493,-460.0,0.00022103,2]
[365909553,1749982245507,-460.0,0.00022103,2]
[365909554,1749982245516,-1210.27,0.00022104,2]
[365909555,1749982245527,-460.0,0.00022104,2]
[365909556,1749982245538,-660.9,0.00022104,2]
[365909557,1749982245547,-825.24,0.00022104,2]
[365909558,1749982245557,-460.0,0.00022104,2]
[365909559,1749982245566,-706.77,0.00022104,2]
[365909560,1749982245576,-830.57,0.00022104,2]
[365909561,1749982245587,-1854.62,0.00022104,2]
[365909562,1749982245597,-500.0,0.00022154,2]
[365909563,1749982245607,-501.65890684,0.00022154,2]
[365909564,1749982245617,-500.0,0.00022154,2]
[365909565,1749982245627,-564.02587587,0.00022169,2]
[365909566,1749982245636,-324.68665771,0.00022169,2]
[365909567,1749982245646,-500.0,0.00022169,2]
[365909568,1749982245656,-500.0,0.00022169,2]
[365909569,1749982245667,-500.0,0.00022169,2]
[365909570,1749982245676,-500.0,0.00022169,2]
[365909571,1749982245686,-63522.35,0.000222,7]
[365909572,1749982245695,-207.4,0.00022214,2]
[365909573,1749982245704,-5000.0,0.00022214,2]
[365909574,1749982245714,-500.0,0.00022214,2]
[365909575,1749982245723,-500.0,0.00022214,2]
[365909576,1749982245733,-500.0,0.00022214,2]
[365909577,1749982245742,-500.0,0.00022214,2]
[365909578,1749982245751,-500.0,0.00022214,2]
[365909579,1749982245760,-500.0,0.00022214,2]
[365909580,1749982245770,-500.0,0.00022214,2]
[365909581,1749982245779,-500.0,0.00022214,2]
[365909582,1749982245789,-500.0,0.00022214,2]
[365909584,1749982245799,-500.0,0.00022214,2]
[365909585,1749982245808,-500.0,0.00022214,2]
[365909586,1749982245818,-500.0,0.00022214,2]
[365909588,1749982245827,-500.0,0.00022214,2]
[365909590,1749982245839,-500.0,0.00022214,2]
[365909592,1749982245848,-500.0,0.00022214,2]
[365909594,1749982245858,-193.06524878,0.0002228,2]
[365909596,1749982245867,-802.32349719,0.00022294,2]
[365909597,1749982245876,-387.7907368,0.00022319,2]
[365909598,1749982245886,-307.5017373,0.00022329,2]
[365909599,1749982245895,-153.0,0.00022329,2]
[365909600,1749982245905,-414.7511058,0.00022329,2]
[365909601,1749982245914,-153.0,0.00022329,2]
[365909602,1749982245924,-153.0,0.00022329,2]
[365909603,1749982245934,-177.0323298,0.00022329,2]
[365909604,1749982245944,-177.0323298,0.00022329,2]
[365909605,1749982245953,-153.0,0.00022329,2]
[365909606,1749982245962,-158.9019424,0.00022329,2]
[365909607,1749982245973,-500.0,0.00022356,2]
[365909608,1749982245983,-460.0,0.00022373,2]
[365909609,1749982245993,-987.01,0.00022373,2]
[365909610,1749982246003,-840.69,0.00022373,2]
[365909611,1749982246013,-801.24,0.00022373,2]
[365909612,1749982246023,-764.98,0.00022374,2]
[365909613,1749982246032,-1282.49,0.00022374,2]
[365909614,1749982246042,-1326.37,0.00022374,2]
[365909615,1749982246051,-1616.2,0.00022374,2]
[365909616,1749982246061,-567.81,0.00022374,2]
[365909617,1749982246071,-599.8983427,0.00022374,2]
[365909618,1749982246081,-460.0,0.00022374,2]
[365909619,1749982246093,-736.44,0.00022374,2]
[365909620,1749982246103,-460.0,0.00022374,2]
[365909621,1749982246113,-592.4,0.00022375,2]
[365909622,1749982246122,-372.16525737,0.00022375,2]
[365909623,1749982246131,-222.55673013,0.00022375,2]
[365909624,1749982246141,-304.04,0.00022375,2]
[365909625,1749982246150,-460.0,0.00022375,2]
[365909626,1749982246160,-460.0,0.00022375,2]
[365909627,1749982246169,-699.71,0.00022376,2]
[365909628,1749982246179,-460.0,0.00022377,2]
[365909629,1749982246188,-460.0,0.00022377,2]
[365909630,1749982246198,-502.38043018,0.00022377,2]
[365909631,1749982246208,-460.0,0.00022377,2]
[365909632,1749982246218,-460.0,0.00022377,2]
[365909633,1749982246227,-1210.27,0.00022378,2]
[365909634,1749982246236,-460.0,0.00022378,2]
[365909635,1749982246246,-660.9,0.00022378,2]
[365909636,1749982246255,-825.24,0.00022378,2]
[365909637,1749982246265,-460.0,0.00022378,2]
[365909638,1749982246275,-706.77,0.00022378,2]
[365909639,1749982246284,-830.57,0.00022378,2]
[365909640,1749982246294,-1854.62,0.00022378,2]
[365909641,1749982246304,-317.9304091,0.00022384,2]
[365909642,1749982246313,-158.9019424,0.00022384,2]
[365909643,1749982246323,-177.0323298,0.00022384,2]
[365909644,1749982246332,-573.8932911,0.00022384,2]
[365909645,1749982246343,-573.8932911,0.00022384,2]
[365909646,1749982246353,-177.0323298,0.00022384,2]
[365909647,1749982246363,-158.9019424,0.00022384,2]
[365909648,1749982246372,-177.0323298,0.00022384,2]
[365909649,1749982246382,-573.8932911,0.00022384,2]
[365909650,1749982246391,-158.9019424,0.00022384,2]
[365909651,1749982246401,-158.9019424,0.00022384,2]
[365909652,1749982246410,-573.8932911,0.00022384,2]
[365909653,1749982246419,-573.8932911,0.00022384,2]
[365909654,1749982246429,-1139.8675581,0.00022384,2]
[365909655,1749982246439,-509.15,0.000224,7]
[365909656,1749982246448,-714.13,0.000224,7]
[365909657,1749982246458,-500.0,0.00022469,2]
[365909658,1749982246467,-502.57038705,0.00022469,2]
[365909660,1749982246477,-158.4678465,0.00022575,2]
[365909661,1749982246486,-153.0,0.00022575,2]
[365909662,1749982246498,-158.9019424,0.00022575,2]
[365909663,1749982246508,-573.8932911,0.00022575,2]
[365909664,1749982246517,-153.0,0.00022575,2]
[365909665,1749982246527,-158.9019424,0.00022575,2]
[365909666,1749982246537,-573.8932911,0.00022575,2]
[365909667,1749982246547,-158.9019424,0.00022575,2]
[365909668,1749982246557,-573.8932911,0.00022575,2]
[365909669,1749982246567,-153.0,0.00022575,2]
[365909670,1749982246576,-158.9019424,0.00022575,2]
[365909671,1749982246588,-573.8932911,0.00022575,2]
[365909672,1749982246598,-352.9231067,0.00022575,2]
[365909673,1749982246608,-153.0,0.00022575,2]
[365909674,1749982246618,-153.0,0.00022575,2]
[365909675,1749982246629,-500.0,0.00022618,2]
[365909676,1749982246639,-500.0,0.00022628,2]
[365909678,1749982246649,-500.0,0.0002264,2]
[365909680,1749982246659,-500.0,0.0002264,2]
[365909682,1749982246669,-1000.0,0.0002264,2]
[365909684,1749982246679,-628.81958972,0.0002264,2]
[365909685,1749982246689,-1000.0,0.0002264,2]
[365909687,1749982246699,-500.0,0.0002264,2]
[365909689,1749982246708,-1200.0,0.0002264,2]
[365909691,1749982246718,-1000.0,0.0002264,2]
[365909693,1749982246728,-1000.0,0.0002264,2]
[365909695,1749982246738,-500.0,0.0002264,2]
[365909697,1749982246747,-507.55460346,0.0002264,2]
[365909699,1749982246757,-1000.0,0.0002264,2]
[365909701,1749982246767,-500.0,0.0002264,2]
[365909703,1749982246776,-1000.0,0.0002264,2]
[365909705,1749982246786,-460.0,0.00022647,2]
[365909708,1749982246796,-987.01,0.00022647,2]
[365909710,1749982246806,-840.69,0.00022647,2]
[365909712,1749982246816,-801.24,0.00022647,2]
[365909714,1749982246826,-764.98,0.00022648,2]
[365909715,1749982246837,-1282.49,0.00022648,2]
[365909717,1749982246847,-1326.37,0.00022648,2]
[365909719,1749982246857,-1616.2,0.00022648,2]
[365909721,1749982246867,-567.81,0.00022648,2]
[365909723,1749982246877,-460.0,0.00022648,2]
[365909726,1749982246887,-736.44,0.00022648,2]
[365909728,1749982246897,-460.0,0.00022648,2]
[365909729,1749982246907,-592.4,0.00022649,2]
[365909731,1749982246917,-460.0,0.00022649,2]
[365909733,1749982246927,-460.0,0.00022649,2]
[365909735,1749982246938,-699.71,0.0002265,2]
[365909737,1749982246949,-460.0,0.00022651,2]
[365909739,1749982246959,-460.0,0.00022651,2]
[365909741,1749982246970,-460.0,0.00022651,2]
[365909743,1749982246980,-460.0,0.00022651,2]
[365909745,1749982246990,-160.0,0.00022652,2]
[365909747,1749982246999,-1210.27,0.00022652,2]
[365909749,1749982247009,-460.0,0.00022652,2]
[365909750,1749982247019,-660.9,0.00022652,2]
[365909751,1749982247029,-825.24,0.00022652,2]
[365909752,1749982247039,-460.0,0.00022652,2]
[365909753,1749982247049,-706.77,0.00022652,2]
[365909754,1749982247059,-830.57,0.00022652,2]
[365909755,1749982247069,-1854.62,0.00022652,2]
[365909756,1749982247079,-1000.0,0.00022702,2]
[365909757,1749982247091,-500.0,0.00022702,2]
[365909758,1749982247101,-500.0,0.00022717,2]
[365909759,1749982247111,-1000.0,0.00022717,2]
[365909760,1749982247123,-1000.0,0.00022717,2]
[365909761,1749982247134,-160.05769407,0.00022822,2]
[365909762,1749982247145,-153.8295048,0.00022849,2]
[365909763,1749982247155,-460.0,0.00022921,2]
[365909764,1749982247165,-987.01,0.00022921,2]
[365909765,1749982247175,-840.69,0.00022921,2]
[365909766,1749982247184,-801.24,0.00022921,2]
[365909767,1749982247194,-764.98,0.00022922,2]
[365909768,1749982247204,-1282.49,0.00022922,2]
[365909769,1749982247214,-1326.37,0.00022922,2]
[365909770,1749982247224,-1616.2,0.00022922,2]
[365909771,1749982247234,-567.81,0.00022922,2]
[365909772,1749982247243,-460.0,0.00022922,2]
[365909773,1749982247254,-736.44,0.00022922,2]
[365909774,1749982247264,-460.0,0.00022922,2]
[365909775,1749982247274,-592.4,0.00022923,2]
[365909776,1749982247284,-232.98662128,0.00022923,2]
[365909777,1749982247294,-460.0,0.00022923,2]
[365909778,1749982247304,-699.71,0.00022924,2]
[365909779,1749982247315,-460.0,0.00022925,2]
[365909780,1749982247325,-460.0,0.00022925,2]
[365909781,1749982247335,-460.0,0.00022925,2]
[365909782,1749982247346,-460.0,0.00022925,2]
[365909783,1749982247356,-1210.27,0.00022926,2]
[365909784,1749982247366,-460.0,0.00022926,2]
[365909785,1749982247376,-660.9,0.00022926,2]
[365909786,1749982247386,-825.24,0.00022926,2]
[365909787,1749982247397,-460.0,0.00022926,2]
[365909788,1749982247406,-706.77,0.00022926,2]
[365909789,1749982247416,-830.57,0.00022926,2]
[365909790,1749982247426,-1854.62,0.00022926,2]
[365909791,1749982247435,-365.3426848,0.00022932,2]
[365909792,1749982247445,-364.5268498,0.00022932,2]
[365909793,1749982247454,-206.0,0.0002294,2]
[365909794,1749982247464,-387.7907368,0.00022973,2]
[365909795,1749982247474,-802.32349719,0.00022989,2]
[365909796,1749982247483,-8643.68,0.00022991,2]
[365909797,1749982247494,-5000.0,0.00022996,2]
[365909798,1749982247505,-19209.17839999,0.00023,2]
[365909799,1749982247514,-184.0,0.00023,7]
[365909800,1749982247524,-500.0,0.00023017,2]
[365909801,1749982247535,-600.0,0.0002304,2]
[365909802,1749982247545,-500.0,0.0002306,2]
[365909803,1749982247555,-500.0,0.00023088,2]
[365909804,1749982247565,-160.09933341,0.00023123,2]
[365909805,1749982247576,-160.0993334,0.00023123,2]
[365909806,1749982247586,-160.05769407,0.00023123,2]
[365909807,1749982247596,-176.246512,0.00023151,2]
[365909808,1749982247605,-573.8932911,0.00023151,2]
[365909809,1749982247615,-158.9019424,0.00023151,2]
[365909810,1749982247625,-153.0,0.00023151,2]
[365909811,1749982247636,-158.9019424,0.00023151,2]
[365909812,1749982247646,-573.8932911,0.00023151,2]
[365909813,1749982247656,-158.9019424,0.00023151,2]
[365909814,1749982247666,-573.8932911,0.00023151,2]
[365909815,1749982247675,-158.9019424,0.00023151,2]
[365909816,1749982247685,-307.9145514,0.00023151,2]
[365909817,1749982247695,-573.8932911,0.00023151,2]
[365909818,1749982247705,-158.9019424,0.00023151,2]
[365909819,1749982247715,-573.8932911,0.00023151,2]
[365909820,1749982247724,-572.5822941,0.00023151,2]
[365909821,1749982247734,-1500.0,0.00023188,2]
[365909822,1749982247744,-1800.0,0.00023188,2]
[365909823,1749982247754,-500.0,0.00023188,2]
[365909824,1749982247764,-502.3111618,0.00023188,2]
[365909825,1749982247773,-500.0,0.00023188,2]
[365909826,1749982247783,-460.0,0.00023195,2]
[365909828,1749982247793,-987.01,0.00023195,2]
[365909829,1749982247802,-840.69,0.00023195,2]
[365909830,1749982247812,-801.24,0.00023195,2]
[365909832,1749982247821,-764.98,0.00023196,2]
[365909834,1749982247831,-1282.49,0.00023196,2]
[365909836,1749982247843,-1326.37,0.00023196,2]
[365909838,1749982247853,-1616.2,0.00023196,2]
[365909840,1749982247863,-567.81,0.00023196,2]
[365909842,1749982247872,-460.0,0.00023196,2]
[365909844,1749982247882,-736.44,0.00023196,2]
[365909846,1749982247892,-460.0,0.00023196,2]
[365909848,1749982247902,-592.4,0.00023197,2]
[365909850,1749982247912,-460.0,0.00023197,2]
[365909851,1749982247922,-699.71,0.00023198,2]
[365909852,1749982247932,-460.0,0.00023199,2]
[365909854,1749982247942,-460.0,0.00023199,2]
[365909856,1749982247951,-460.0,0.00023199,2]
[365909858,1749982247961,-460.0,0.00023199,2]
[365909860,1749982247970,-3000.0,0.000232,2]
[365909862,1749982247980,-1210.27,0.000232,2]
[365909864,1749982247990,-460.0,0.000232,2]
[365909878,1749982248115,-660.9,0.000232,2]
[365909880,1749982248126,-825.24,0.000232,2]
[365909882,1749982248136,-460.0,0.000232,2]
[365909884,1749982248146,-706.77,0.000232,2]
[365909886,1749982248158,-830.57,0.000232,2]
[365909888,1749982248169,-1854.62,0.000232,2]
[365909890,1749982248179,-206.0,0.0002321,2]
[365909892,1749982248189,-3000.0,0.0002321,2]
[365909894,1749982248198,-3000.0,0.0002322,2]
[365909896,1749982248208,-3000.0,0.0002323,2]
[365909898,1749982248217,-3000.0,0.0002324,2]
[365909900,1749982248226,-1500.0,0.0002325,2]
[365909902,1749982248236,-3000.0,0.0002325,2]
[365909904,1749982248245,-3000.0,0.0002326,2]
[365909905,1749982248255,-1500.0,0.00023265,2]
[365909907,1749982248264,-1500.0,0.00023265,2]
[365909909,1749982248273,-3000.0,0.0002327,2]
[365909911,1749982248283,-3000.0,0.0002328,2]
[365909913,1749982248293,-606.18394068,0.0002328,2]
[365909915,1749982248302,-3000.0,0.0002329,2]
[365909917,1749982248310,-964.0,0.00023291,2]
[365909918,1749982248319,-2160.0,0.00023291,2]
[365909919,1749982248329,-653.0,0.00023291,2]
[365909921,1749982248340,-5310.304571,0.000233,2]
[365909923,1749982248349,-500.0,0.0002334,2]
[365909925,1749982248359,-63522.35,0.000234,7]
[365909927,1749982248368,-3000.0,0.000234,2]
[365909929,1749982248378,-151.0,0.000234,7]
[365909931,1749982248388,-151.0,0.000234,7]
[365909933,1749982248398,-151.0,0.000234,7]
[365909935,1749982248408,-151.0,0.000234,7]
[365909937,1749982248418,-151.0,0.000234,7]
[365909939,1749982248428,-151.0,0.000234,7]
[365909941,1749982248437,-151.0,0.000234,7]
[365909943,1749982248447,-151.0,0.000234,7]
[365909945,1749982248456,-151.92442,0.000234,7]
[365909947,1749982248465,-633.729489,0.000234,2]
[365909949,1749982248475,-151.0,0.000234,7]
[365909951,1749982248484,-633.729489,0.000234,2]
[365909953,1749982248495,-151.0,0.000234,7]
[365909955,1749982248507,-151.0,0.000234,7]
[365909957,1749982248516,-151.0,0.000234,7]
[365909959,1749982248526,-151.0,0.000234,7]
[365909962,1749982248536,-151.0,0.000234,7]
[365909963,1749982248546,-405.0,0.00023407,2]
[365909966,1749982248555,-406.0,0.00023407,2]
[365909968,1749982248565,-3000.0,0.0002341,2]
[365909969,1749982248574,-3000.0,0.0002342,2]
[365909971,1749982248585,-160.05769407,0.00023425,2]
[365909973,1749982248595,-264.0,0.00023425,2]
[365909976,1749982248605,-3000.0,0.0002343,2]
[365909978,1749982248614,-3000.0,0.0002344,2]
[365909979,1749982248624,-500.0,0.0002344,2]
[365909981,1749982248634,-500.0,0.00023443,2]
[365909983,1749982248643,-500.0,0.00023444,2]
[365909985,1749982248653,-3000.0,0.0002345,2]
[365909987,1749982248662,-3000.0,0.0002346,2]
[365909989,1749982248673,-460.0,0.00023469,2]
[365909991,1749982248682,-987.01,0.00023469,2]
[365909993,1749982248691,-840.69,0.00023469,2]
[365909995,1749982248701,-801.24,0.00023469,2]
[365909997,1749982248712,-206.0,0.0002347,2]
[365909999,1749982248722,-3000.0,0.0002347,2]
[365910001,1749982248732,-764.98,0.0002347,2]
[365910003,1749982248742,-1282.49,0.0002347,2]
[365910005,1749982248751,-1326.37,0.0002347,2]
[365910007,1749982248761,-1616.2,0.0002347,2]
[365910009,1749982248770,-567.81,0.0002347,2]
[365910011,1749982248780,-460.0,0.0002347,2]
[365910013,1749982248790,-736.44,0.0002347,2]
[365910015,1749982248800,-592.4,0.00023471,2]
[365910017,1749982248809,-500.0,0.00023471,2]
[365910019,1749982248819,-460.0,0.00023471,2]
[365910021,1749982248829,-699.71,0.00023472,2]
[365910024,1749982248840,-221.28876996,0.00023473,2]
[365910025,1749982248850,-446.65352134,0.00023473,2]
[365910048,1749982249067,-460.0,0.00020455,2]
[365910050,1749982249077,-33.28256153,0.00020455,2]
[365910067,1749982249240,-140.44486233,0.00020455,2]
[365910076,1749982249325,150.0,0.000189,2]
[365910111,1749982249655,-266.27257614,0.00020455,2]
[365910113,1749982249664,-125.91811547,0.00020455,2]
[365910115,1749982249676,-334.08188453,0.00020455,2]
[365910117,1749982249685,-378.23402232,0.00020455,2]
[365910119,1749982249695,-460.0,0.00020457,2]
[365910121,1749982249704,-460.0,0.00020457,2]